fUST/lending_fUST_20250821
["ID","MTS","AMOUNT","RATE_DAILY","PERIOD"]
[380406493,1755744638581,-500.0,0.00023673,2]
[380406494,1755744638590,-501.609442,0.00023673,2]
[380406495,1755744638599,-500.0,0.00023673,2]
[380406496,1755744638608,-500.0,0.00023673,2]
[380406497,1755744638616,-500.0,0.00023673,2]
[380406498,1755744638626,-500.0,0.00023673,2]
[380406499,1755744638634,-500.0,0.00023673,2]
[380406500,1755744638643,-500.0,0.00023673,2]
[380406501,1755744638652,-500.0,0.00023673,2]
[380406502,1755744638661,-500.0,0.00023673,2]
[380406503,1755744638670,-2264.10087164,0.0002369,2]
[380406504,1755744638679,-3977.39,0.000237,7]
[380406505,1755744638688,-7221.15,0.000237,7]
[380406506,1755744638697,-160.0,0.000237,7]
[380406507,1755744638707,-815.56,0.000237,7]
[380406508,1755744638716,-376.00439007,0.000237,7]
[380406509,1755744638726,-262.5834456,0.00023715,2]
[380406510,1755744638735,-300.0,0.00023735,2]
[380406511,1755744638743,-2625.83445601,0.00023739,2]
[380406512,1755744638753,-200.0,0.0002374,8]
[380406513,1755744638762,-237.7550809,0.00023743,2]
[380406514,1755744638771,-581.0009137,0.00023743,2]
[380406515,1755744638780,-581.0009137,0.00023743,2]
[380406516,1755744638789,-581.0009137,0.00023743,2]
[380406517,1755744638798,-151.0,0.00023743,7]
[380406518,1755744638808,-151.0,0.00023743,7]
[380406519,1755744638817,-151.0,0.00023743,7]
[380406520,1755744638826,-2625.83445601,0.00023745,2]
[380406521,1755744638835,-2347.87260389,0.00023745,2]
[380406522,1755744638844,-17363.19839312,0.00023748,3]
[380406523,1755744638854,-232.28399145,0.00023748,3]
[380406524,1755744638864,-216.95272161,0.00023748,3]
[380406525,1755744638877,-160.0,0.00023748,3]
[380406527,1755744638887,-844.19128999,0.00023748,3]
[380406529,1755744638897,-376.00439007,0.00023748,3]
[380406530,1755744638906,-152.78543081,0.00023748,2]
[380406531,1755744638916,-250.61433319,0.00023748,2]
[380406532,1755744638926,-152.14769542,0.00023748,2]
[380406533,1755744638935,-151.0,0.00023748,2]
[380406534,1755744638945,-151.0,0.00023748,2]
[380406535,1755744638954,-151.0955204,0.00023748,2]
[380406536,1755744638964,-151.0,0.00023748,2]
[380406537,1755744638974,-151.24182201,0.00023748,2]
[380406538,1755744638983,-151.28794428,0.00023748,2]
[380406539,1755744638993,-151.28742282,0.00023748,2]
[380406540,1755744639003,-151.86680626,0.00023748,2]
[380406541,1755744639012,-151.74054978,0.00023748,2]
[380406542,1755744639022,-153.628488,0.00023748,7]
[380406543,1755744639032,-153.38351,0.00023748,7]
[380406544,1755744639043,-153.250436,0.00023748,7]
[380406545,1755744639052,-151.0,0.00023748,7]
[380406546,1755744639061,-154.671699,0.00023748,7]
[380406547,1755744639071,-151.0,0.00023748,7]
[380406548,1755744639080,-151.0,0.00023748,7]
[380406549,1755744639089,-151.0,0.00023748,7]
[380406550,1755744639099,-151.0,0.00023748,7]
[380406551,1755744639109,-171.749523,0.00023748,7]
[380406552,1755744639118,-171.749523,0.00023748,7]
[380406553,1755744639128,-171.749523,0.00023748,7]
[380406554,1755744639138,-171.749523,0.00023748,7]
[380406555,1755744639147,-153.630477,0.00023748,7]
[380406556,1755744639157,-151.0,0.00023748,7]
[380406557,1755744639167,-151.0,0.00023748,7]
[380406558,1755744639179,-152.740771,0.00023748,7]
[380406559,1755744639188,-152.661076,0.00023748,7]
[380406560,1755744639197,-153.715387,0.00023748,7]
[380406561,1755744639207,-155.590989,0.00023748,7]
[380406562,1755744639216,-151.0,0.00023748,7]
[380406563,1755744639225,-151.0,0.00023748,7]
[380406564,1755744639234,-574.031705,0.00023748,7]
[380406565,1755744639245,-574.031705,0.00023748,7]
[380406566,1755744639255,-574.031705,0.00023748,7]
[380406567,1755744639265,-574.031705,0.00023748,7]
[380406568,1755744639274,-151.0,0.00023748,7]
[380406569,1755744639283,-151.0,0.00023748,7]
[380406570,1755744639292,-151.0,0.00023748,7]
[380406571,1755744639302,-1622.4737239,0.00023749,2]
[380406572,1755744639311,-10259.06970646,0.00023749,2]
[380406573,1755744639321,-151.0,0.00023749,7]
[380406574,1755744639330,-151.0,0.00023749,7]
[380406575,1755744639340,-157.711318,0.00023749,7]
[380406576,1755744639349,-802.0,0.00023762,2]
[380406577,1755744639358,-503.04686194,0.00023773,2]
[380406578,1755744639367,-500.0,0.00023773,2]
[380406579,1755744639376,-320.84580144,0.00023773,2]
[380406580,1755744639386,-500.0,0.00023773,2]
[380406581,1755744639394,-617.44463649,0.00023773,2]
[380406582,1755744639404,-503.08263347,0.00023773,2]
[380406583,1755744639412,-538.20167449,0.00023773,2]
[380406584,1755744639421,-262.5834456,0.00023785,2]
[380406585,1755744639431,-806.29201634,0.00023796,2]
[380406586,1755744639440,-2434.74389024,0.000238,2]
[380406587,1755744639449,-151.0,0.00023807,7]
[380406588,1755744639458,-151.0,0.00023807,7]
[380406589,1755744639467,-151.0,0.00023807,7]
[380406590,1755744639476,-151.0,0.00023807,7]
[380406591,1755744639485,-151.0,0.00023807,7]
[380406592,1755744639494,-151.0,0.00023807,7]
[380406593,1755744639503,-450.0,0.00023807,2]
[380406594,1755744639512,-450.0,0.00023827,2]
[380406595,1755744639522,-168.0,0.00023828,2]
[380406596,1755744639531,-363.32917776,0.00023836,2]
[380406597,1755744639541,-342.66463803,0.00023836,2]
[380406598,1755744639549,-294.96460396,0.00023848,2]
[380406599,1755744639559,-840.17971257,0.00023848,2]
[380406600,1755744639568,-500.0,0.00023848,2]
[380406601,1755744639577,-840.17971257,0.00023848,2]
[380406602,1755744639586,-840.17971257,0.00023848,2]
[380406603,1755744639595,-840.17971257,0.00023848,2]
[380406604,1755744639605,-500.0,0.00023848,2]
[380406605,1755744639614,-840.17971257,0.00023848,2]
[380406606,1755744639623,-840.17971257,0.00023848,2]
[380406607,1755744639633,-425.37403077,0.00023848,2]
[380406608,1755744639641,-840.17971257,0.00023848,2]
[380406609,1755744639651,-840.17971257,0.00023848,2]
[380406610,1755744639660,-840.17971257,0.00023848,2]
[380406611,1755744639669,-840.17971257,0.00023848,2]
[380406612,1755744639678,-840.17971257,0.00023848,2]
[380406613,1755744639688,-840.17971257,0.00023848,2]
[380406614,1755744639697,-840.17971257,0.00023848,2]
[380406615,1755744639706,-840.17971257,0.00023848,2]
[380406616,1755744639715,-840.17971257,0.00023848,2]
[380406617,1755744639725,-840.17971257,0.00023848,2]
[380406618,1755744639734,-840.17971257,0.00023848,2]
[380406619,1755744639743,-840.17971257,0.00023848,2]
[380406620,1755744639754,-840.17971257,0.00023848,2]
[380406621,1755744639764,-840.17971257,0.00023848,2]
[380406622,1755744639774,-907.39408956,0.00023848,2]
[380406623,1755744639784,-907.39408956,0.00023848,2]
[380406624,1755744639794,-907.39408956,0.00023848,2]
[380406625,1755744639804,-907.39408956,0.00023848,2]
[380406626,1755744639821,-907.39408956,0.00023848,2]
[380406627,1755744639833,-907.39408956,0.00023848,2]
[380406628,1755744639843,-907.39408956,0.00023848,2]
[380406629,1755744639853,-907.39408956,0.00023848,2]
[380406630,1755744639862,-907.39408956,0.00023848,2]
[380406631,1755744639872,-500.0,0.00023848,2]
[380406632,1755744639881,-601.31112575,0.00023848,2]
[380406633,1755744639890,-151.539718,0.00023848,7]
[380406634,1755744639899,-151.0,0.00023848,7]
[380406635,1755744639908,-153.412941,0.00023848,7]
[380406636,1755744639917,-151.0,0.00023848,7]
[380406637,1755744639926,-151.0,0.00023848,7]
[380406638,1755744639936,-154.096171,0.00023848,7]
[380406639,1755744639945,-151.0,0.00023848,7]
[380406640,1755744639954,-151.0,0.00023848,7]
[380406641,1755744639963,-151.0,0.00023848,7]
[380406642,1755744639972,-151.0,0.00023848,7]
[380406643,1755744639982,-151.0,0.00023848,7]
[380406644,1755744639991,-151.664793,0.00023848,7]
[380406645,1755744640000,-151.0,0.00023848,7]
[380406646,1755744640009,-151.0,0.00023848,7]
[380406647,1755744640019,-151.0,0.00023848,7]
[380406648,1755744640028,-226.562972,0.00023848,7]
[380406649,1755744640037,-152.276407,0.00023848,7]
[380406650,1755744640047,-151.762566,0.00023848,7]
[380406651,1755744640056,-151.0,0.00023848,7]
[380406652,1755744640168,-151.0,0.00023848,7]
[380406653,1755744640181,-217.593718,0.00023848,7]
[380406654,1755744640190,-152.359924,0.00023848,7]
[380406655,1755744640199,-151.0,0.00023848,7]
[380406656,1755744640208,-151.0,0.00023848,7]
[380406657,1755744640218,-151.0,0.00023848,7]
[380406658,1755744640227,-151.0,0.00023848,7]
[380406659,1755744640236,-151.0,0.00023848,7]
[380406660,1755744640246,-151.0,0.00023848,7]
[380406661,1755744640257,-151.0,0.00023848,7]
[380406662,1755744640266,-171.749523,0.00023848,7]
[380406663,1755744640275,-171.749523,0.00023848,7]
[380406664,1755744640285,-171.749523,0.00023848,7]
[380406665,1755744640294,-171.749523,0.00023848,7]
[380406666,1755744640304,-151.0,0.00023848,7]
[380406667,1755744640314,-151.0,0.00023848,7]
[380406668,1755744640324,-162.090606,0.00023848,7]
[380406669,1755744640336,-151.0,0.00023848,7]
[380406670,1755744640345,-574.031705,0.00023848,7]
[380406671,1755744640355,-574.031705,0.00023848,7]
[380406672,1755744640366,-574.031705,0.00023848,7]
[380406673,1755744640376,-574.031705,0.00023848,7]
[380406674,1755744640385,-574.031705,0.00023848,7]
[380406675,1755744640395,-574.031705,0.00023848,7]
[380406676,1755744640405,-574.031705,0.00023848,7]
[380406677,1755744640414,-151.0,0.00023848,7]
[380406678,1755744640424,-574.031705,0.00023848,7]
[380406679,1755744640433,-151.0,0.00023848,7]
[380406680,1755744640443,-151.0,0.00023848,7]
[380406681,1755744640452,-151.0,0.00023848,7]
[380406682,1755744640462,-151.0,0.00023848,7]
[380406683,1755744640471,-151.0,0.00023848,7]
[380406684,1755744640481,-151.0,0.00023848,7]
[380406685,1755744640491,-151.0,0.00023848,7]
[380406686,1755744640501,-395403.08,0.00023849,2]
[380406687,1755744640512,-665.96,0.00023849,2]
[380406688,1755744640521,-1165141.31,0.00023849,2]
[380406689,1755744640533,-221.670445,0.00023849,7]
[380406690,1755744640542,-151.0,0.00023849,7]
[380406691,1755744640551,-151.0,0.00023849,7]
[380406692,1755744640561,-151.0,0.00023849,7]
[380406693,1755744640571,-151.0,0.00023849,7]
[380406694,1755744640580,-151.0,0.00023849,7]
[380406695,1755744640589,-220.058815,0.00023849,7]
[380406696,1755744640609,-151.0,0.00023849,7]
[380406697,1755744640618,-153.349778,0.00023849,7]
[380406698,1755744640627,-151.0,0.00023849,7]
[380406699,1755744640637,-151.0,0.00023849,7]
[380406700,1755744640647,-179.970316,0.00023849,7]
[380406701,1755744640657,-158.147962,0.00023849,7]
[380406702,1755744640666,-152.617796,0.00023849,7]
[380406703,1755744640675,-151.0,0.00023849,7]
[380406704,1755744640685,-151.0,0.00023849,7]
[380406705,1755744640695,-151.0,0.00023849,7]
[380406706,1755744640704,-151.0,0.00023849,7]
[380406707,1755744640714,-151.0,0.00023849,7]
[380406708,1755744640723,-259.607792,0.00023849,7]
[380406709,1755744640733,-171.749523,0.00023849,7]
[380406710,1755744640742,-171.749523,0.00023849,7]
[380406711,1755744640751,-171.749523,0.00023849,7]
[380406712,1755744640761,-171.749523,0.00023849,7]
[380406713,1755744640770,-171.749523,0.00023849,7]
[380406714,1755744640779,-171.749523,0.00023849,7]
[380406715,1755744640788,-171.749523,0.00023849,7]
[380406716,1755744640799,-171.749517,0.00023849,7]
[380406717,1755744640819,-151.0,0.00023849,7]
[380406718,1755744640831,-151.0,0.00023849,7]
[380406719,1755744640842,-151.0,0.00023849,7]
[380406720,1755744640851,-151.0,0.00023849,7]
[380406721,1755744640860,-201.349808,0.00023849,7]
[380406722,1755744640870,-574.031705,0.00023849,7]
[380406723,1755744640886,-574.031705,0.00023849,7]
[380406724,1755744640905,-574.031705,0.00023849,7]
[380406725,1755744640916,-574.03170446,0.00023849,7]
[380406726,1755744640925,-151.0,0.00023849,7]
[380406727,1755744640934,-151.0,0.00023849,7]
[380406728,1755744640943,-214.291686,0.00023849,7]
[380406729,1755744640952,-151.0,0.00023849,7]
[380406730,1755744640962,-151.0,0.00023849,7]
[380406731,1755744640971,-2524.82941417,0.00023855,2]
[380406732,1755744640981,-580.23209981,0.00023873,2]
[380406733,1755744640990,-500.0,0.00023873,2]
[380406734,1755744640999,-501.34143049,0.00023873,2]
[380406735,1755744641008,-500.0,0.00023873,2]
[380406736,1755744641018,-500.0,0.00023873,2]
[380406737,1755744641027,-500.0,0.00023873,2]
[380406738,1755744641037,-500.0,0.00023873,2]
[380406739,1755744641046,-500.90824152,0.00023873,2]
[380406740,1755744641055,-500.0,0.00023873,2]
[380406741,1755744641065,-500.0,0.00023873,2]
[380406742,1755744641075,-825.77775153,0.00023881,2]
[380406743,1755744641084,-450.0,0.00023892,2]
[380406744,1755744641094,-3000.0,0.000239,2]
[380406745,1755744641104,-150.0,0.000239,2]
[380406746,1755744641113,-151.0,0.000239,8]
[380406747,1755744641123,-19522.09,0.000239,2]
[380406748,1755744641133,-2618.2481025,0.0002391,2]
[380406749,1755744641142,-3322.07264,0.0002391,2]
[380406750,1755744641152,-3274.0,0.00023918,2]
[380406751,1755744641160,-500.0,0.00023922,2]
[380406752,1755744641171,-500.0,0.00023922,2]
[380406753,1755744641181,-612.17783366,0.00023922,2]
[380406754,1755744641190,-223.0110494,0.00023922,2]
[380406755,1755744641199,-501.85385423,0.00023922,2]
[380406756,1755744641209,-500.0,0.00023922,2]
[380406757,1755744641217,-151.0,0.00023944,7]
[380406758,1755744641227,-151.0,0.00023944,7]
[380406759,1755744641236,-182.0,0.00023944,2]
[380406760,1755744641247,-151.0,0.00023947,7]
[380406761,1755744641255,-166.968838,0.00023947,7]
[380406762,1755744641265,-2715.12328229,0.00023965,2]
[380406763,1755744641274,-161.24799,0.00023973,2]
[380406764,1755744641284,-157.0,0.00024,10]
[380406765,1755744641293,-157.0,0.00024,10]
[380406766,1755744641302,-157.0,0.00024,9]
[380406767,1755744641311,-157.0,0.00024,8]
[380406768,1755744641320,-157.0,0.00024,8]
[380406769,1755744641330,-157.0,0.00024,8]
[380406770,1755744641340,-157.0,0.00024,7]
[380406771,1755744641349,-157.0,0.00024,9]
[380406772,1755744641359,-157.0,0.00024,7]
[380406773,1755744641368,-157.0,0.00024,7]
[380406774,1755744641377,-157.0,0.00024,6]
[380406775,1755744641386,-157.0,0.00024,6]
[380406776,1755744641396,-157.0,0.00024,6]
[380406777,1755744641405,-157.0,0.00024,5]
[380406778,1755744641414,-157.0,0.00024,5]
[380406779,1755744641423,-157.0,0.00024,5]
[380406780,1755744641433,-157.0,0.00024,5]
[380406781,1755744641443,-157.0,0.00024,5]
[380406782,1755744641453,-157.0,0.00024,5]
[380406783,1755744641462,-151.0,0.00024,7]
[380406784,1755744641472,-151.0,0.00024,6]
[380406785,1755744641481,-151.0,0.00024,7]
[380406786,1755744641490,-151.0,0.00024,7]
[380406787,1755744641499,-232.28399145,0.00024,7]
[380406788,1755744641508,-216.95272161,0.00024,7]
[380406789,1755744641518,-844.19128999,0.00024,7]
[380406790,1755744641527,-654.14,0.00024,2]
[380406791,1755744641536,-168.0,0.00024003,2]
[380406792,1755744641545,-376.00439007,0.00024007,2]
[380406793,1755744641554,-160.0,0.00024007,2]
[380406794,1755744641563,-160.0,0.00024007,2]
[380406795,1755744641572,-450.0,0.00024008,2]
[380406796,1755744641581,-633.53623009,0.00024008,2]
[380406797,1755744641590,-232.28399145,0.00024008,2]
[380406798,1755744641600,-160.0,0.00024008,2]
[380406799,1755744641609,-215.86710461,0.00024008,2]
[380406800,1755744641618,-216.95272161,0.00024012,2]
[380406801,1755744641627,-160.0,0.00024012,2]
[380406802,1755744641637,-844.19128999,0.00024012,2]
[380406803,1755744641646,-2815.58284374,0.0002402,2]
[380406804,1755744641655,-174.67012583,0.00024022,2]
[380406805,1755744641664,-151.64051298,0.00024022,2]
[380406806,1755744641673,-151.87800042,0.00024022,2]
[380406807,1755744641682,-309.9403112,0.00024027,2]
[380406808,1755744641692,-326.0,0.00024047,3]
[380406809,1755744641702,-326.0,0.00024047,3]
[380406810,1755744641717,-326.0,0.00024047,3]
[380406811,1755744641737,-326.0,0.00024047,3]
[380406812,1755744641749,-326.0,0.00024047,3]
[380406813,1755744641760,-326.0,0.00024047,3]
[380406814,1755744641770,-326.0,0.00024047,3]
[380406815,1755744641779,-326.0,0.00024047,3]
[380406816,1755744641789,-326.0,0.00024047,3]
[380406817,1755744641798,-326.0,0.00024047,3]
[380406818,1755744641808,-326.0,0.00024047,3]
[380406819,1755744641817,-326.0,0.00024047,3]
[380406820,1755744641826,-326.0,0.00024047,3]
[380406821,1755744641836,-326.0,0.00024047,3]
[380406822,1755744641845,-326.0,0.00024047,3]
[380406823,1755744641855,-377.61966442,0.00024047,3]
[380406824,1755744641864,-496.0,0.0002405,2]
[380406825,1755744641873,-324.0,0.00024051,2]
[380406826,1755744641978,-2919.75940895,0.00024075,2]
[380406827,1755744641988,-151.0,0.000241,5]
[380406828,1755744641998,-160.0,0.000241,2]
[380406829,1755744642008,-326.0,0.0002411,3]
[380406830,1755744642017,-326.0,0.0002411,3]
[380406831,1755744642026,-326.0,0.0002411,3]
[380406832,1755744642035,-326.0,0.0002411,3]
[380406833,1755744642044,-326.0,0.0002411,3]
[380406834,1755744642053,-326.0,0.0002411,3]
[380406835,1755744642062,-326.0,0.0002411,3]
[380406836,1755744642071,-3027.79050709,0.0002413,2]
[380406837,1755744642081,-493.0,0.00024134,2]
[380406838,1755744642090,-825.77775153,0.00024188,2]
[380406839,1755744642099,-500.0,0.00024196,2]
[380406840,1755744642108,-500.0,0.00024196,2]
[380406841,1755744642117,-401.55849812,0.00024196,2]
[380406842,1755744642127,-151.0,0.000242,9]
[380406843,1755744642136,-151.0,0.000242,9]
[380406844,1755744642146,-824.25194478,0.00024221,2]
[380406845,1755744642157,-456.43844516,0.00024221,2]
[380406846,1755744642172,-506.50019155,0.00024221,2]
[380406847,1755744642187,-504.51571652,0.00024221,2]
[380406848,1755744642196,-1000.0,0.00024221,2]
[380406849,1755744642206,-443.63382076,0.00024221,2]
[380406850,1755744642215,-1010.23824093,0.00024221,2]
[380406851,1755744642225,-1004.72793019,0.00024221,2]
[380406852,1755744642235,-240.74035501,0.00024221,2]
[380406853,1755744642244,-486.20982051,0.00024221,2]
[380406854,1755744642255,-1000.0,0.00024221,2]
[380406855,1755744642265,-1089.35663462,0.00024221,2]
[380406856,1755744642274,-151.0,0.000243,9]
[380406857,1755744642283,-1000.0,0.00024321,2]
[380406858,1755744642293,-206.36422837,0.00024321,2]
[380406859,1755744642303,-212.002781,0.00024321,7]
[380406860,1755744642313,-151.0,0.00024321,7]
[380406861,1755744642326,-151.0,0.00024321,7]
[380406862,1755744642337,-228.612198,0.00024321,7]
[380406863,1755744642347,-151.0,0.00024321,7]
[380406864,1755744642356,-151.0,0.00024321,7]
[380406865,1755744642366,-168.0,0.00024371,2]
[380406866,1755744642375,-151.0,0.000244,7]
[380406867,1755744642385,-500.0,0.00024417,2]
[380406868,1755744642394,-501.23683923,0.00024421,2]
[380406869,1755744642403,-1000.0,0.00024421,2]
[380406870,1755744642413,-397.23507294,0.00024421,2]
[380406871,1755744642422,-1000.0,0.00024421,2]
[380406872,1755744642431,-504.20729445,0.00024421,2]
[380406873,1755744642440,-1002.92322853,0.00024421,2]
[380406874,1755744642450,-1000.0,0.00024421,2]
[380406875,1755744642459,-500.0,0.0002447,2]
[380406876,1755744642468,-500.0,0.0002447,2]
[380406877,1755744642477,-825.77775153,0.00024496,2]
[380406878,1755744642487,-200.0,0.00024499,2]
[380406879,1755744642496,-4701.43,0.000245,7]
[380406880,1755744642505,-10892.63,0.000245,7]
[380406881,1755744642515,-151.0,0.000245,7]
[380406882,1755744642523,-151.0,0.000245,7]
[380406883,1755744642532,-160.0,0.000245,7]
[380406884,1755744642541,-362.35524184,0.00024577,2]
[380406885,1755744642551,-162.5,0.00024591,7]
[380406886,1755744642560,-184.88069854,0.000246,11]
[380406887,1755744642569,-277.2,0.000246,2]
[380406888,1755744642578,-163.60770988,0.000246,7]
[380406889,1755744642588,-158.84,0.00024616,7]
[380406890,1755744642597,-574.39,0.00024616,7]
[380406891,1755744642608,-260.0,0.00024648,2]
[380406892,1755744642617,-500.0,0.00024658,2]
[380406893,1755744642626,-172.70367534,0.000247,2]
[380406894,1755744642635,-815.56,0.000247,7]
[380406895,1755744642644,-158.84,0.00024716,7]
[380406896,1755744642654,-574.39,0.00024716,7]
[380406897,1755744642663,-500.0,0.00024744,2]
[380406898,1755744642673,-500.0,0.00024744,2]
[380406899,1755744642683,-271.04473142,0.00024768,2]
[380406900,1755744642693,-500.91172369,0.00024773,2]
[380406901,1755744642705,-500.0,0.00024773,2]
[380406902,1755744642715,-500.0,0.00024773,2]
[380406903,1755744642724,-150.0,0.00024773,2]
[380406904,1755744642734,-1019.9536206,0.00024773,2]
[380406905,1755744642744,-353.75507539,0.00024799,2]
[380406906,1755744642754,-12687.94051737,0.000248,7]
[380406907,1755744642764,-3977.39,0.000248,7]
[380406908,1755744642774,-7221.15,0.000248,7]
[380406909,1755744642783,-135555.664936,0.000248,2]
[380406910,1755744642792,-825.77775153,0.00024803,2]
[380406911,1755744642802,-574.39,0.00024816,7]
[380406912,1755744642811,-654.14,0.00024821,3]
[380406913,1755744642821,-3274.0,0.00024832,2]
[380406914,1755744642830,-501.66758591,0.00024868,2]
[380406915,1755744642839,-150.0,0.00024873,2]
[380406916,1755744642849,-1001.34790328,0.00024873,2]
[380406917,1755744642859,-150.0,0.00024873,2]
[380406918,1755744642869,-150.84265623,0.00024873,2]
[380406919,1755744642879,-500.0,0.00024873,2]
[380406920,1755744642888,-501.58683435,0.00024873,2]
[380406921,1755744642897,-3274.0,0.00024894,2]
[380406922,1755744642906,-755864.843187,0.000249,2]
[380406923,1755744642916,-324.0,0.00024903,2]
[380406924,1755744642925,-574.39,0.00024916,7]
[380406925,1755744642934,-500.0,0.00024932,2]
[380406926,1755744642944,-331.29374873,0.00024955,2]
[380406927,1755744642953,-198.08123383,0.00024968,2]
[380406928,1755744642962,-1500.0,0.00024968,2]
[380406929,1755744642972,-1500.0,0.00024968,2]
[380406930,1755744642981,-1848.23310023,0.00025,14]
[380406931,1755744642990,-16062.64592512,0.00025,2]
[380406932,1755744642999,-157.0,0.00025,14]
[380406935,1755744643010,-157.0,0.00025,14]
[380406936,1755744643018,-19522.09,0.00025,2]
[380406937,1755744643027,-19897.22545671,0.00025004,2]
[380406938,1755744643037,-151.0,0.00025004,2]
[380406939,1755744643046,-988.52,0.00025009,3]
[380406940,1755744643055,-1865.46,0.00025009,3]
[380406941,1755744643065,-1000.0,0.00025015,5]
[380406942,1755744643074,-574.39,0.00025016,7]
[380406943,1755744643083,-500.0,0.00025018,2]
[380406944,1755744643092,-500.0,0.00025018,2]
[380406945,1755744643101,-160.0,0.00025057,3]
[380406946,1755744643110,-324.0,0.00025096,2]
[380406947,1755744643119,-324.0,0.000251,2]
[380406948,1755744643129,-574.39,0.00025116,7]
[380406950,1755744643138,-360.0,0.00025196,2]
[380406951,1755744643147,-500.0,0.00025206,2]
[380406952,1755744643156,-574.39,0.00025216,7]
[380406953,1755744643165,-150.0,0.00025234,2]
[380406954,1755744643177,-1453.31671106,0.00025249,2]
[380406955,1755744643187,-168.0,0.00025261,2]
[380406956,1755744643196,-500.0,0.00025292,2]
[380406957,1755744643206,-500.0,0.00025292,2]
[380406958,1755744643215,-574.39,0.00025316,7]
[380406959,1755744643225,-851.78588472,0.00025321,2]
[380406960,1755744643234,-505.64555115,0.00025321,2]
[380406961,1755744643242,-250.37229567,0.00025321,2]
[380406962,1755744643252,-324.0,0.00025322,2]
[380406963,1755744643261,-200.0,0.0002536,13]
[380406964,1755744643270,-574.39,0.00025416,7]
[380406965,1755744643280,-324.0,0.00025417,2]
[380406966,1755744643289,-250.0,0.00025421,2]
[380406967,1755744643299,-300.0,0.00025421,2]
[380406968,1755744643309,-250.72281675,0.00025421,2]
[380406969,1755744643319,-160.0,0.00025426,4]
[380406970,1755744643327,-900.0,0.00025469,3]
[380406971,1755744643336,-160.0,0.0002547,3]
[380406972,1755744643345,-500.0,0.0002548,2]
[380406973,1755744643356,-362.35524184,0.00025513,3]
[380406974,1755744643365,-574.39,0.00025516,7]
[380406975,1755744643374,-735.80494066,0.00025516,2]
[380406976,1755744643383,-2000.0,0.00025516,2]
[380406977,1755744643393,-203.0,0.00025558,2]
[380406978,1755744643403,-500.0,0.00025566,2]
[380406979,1755744643414,-500.0,0.00025566,2]
[380406980,1755744643423,-420.0,0.00025574,2]
[380406981,1755744643432,-973.0,0.00025611,2]
[380406982,1755744643442,-2155.303,0.00025611,2]
[380406983,1755744643450,-639.16,0.00025611,2]
[380406984,1755744643459,-574.39,0.00025616,7]
[380406985,1755744643469,-500.0,0.00025638,2]
[380406986,1755744643477,-654.14,0.00025643,4]
[380406987,1755744643486,-5528.33989218,0.00025699,7]
[380406988,1755744643495,-815.56,0.000257,7]
[380406998,1755744643589,-574.39,0.00025716,7]
[380406999,1755744643607,-324.0,0.00025733,2]
[380407001,1755744643617,-460.0,0.00025744,2]
[380407004,1755744643626,-645.77752074,0.00025754,2]
[380407006,1755744643635,-160.0,0.00025796,5]
[380407008,1755744643644,-574.39,0.00025816,7]
[380407010,1755744643654,-500.0,0.0002584,2]
[380407012,1755744643663,-500.0,0.0002584,2]
[380407014,1755744643672,-593.1,0.0002584,4]